bitfinex/quotes_ETHUSD_20241001
["timestamp","ask_amount","ask_price","bid_price","bid_amount"]
[1727755407386,3.79464,2635.3,2635.1,0.09300484]
[1727755407555,3.79477,2635.2,2635.1,1.75010484]
[1727755407753,3.79464,2635.3,2635.1,1.75010484]
[1727755407954,3.79477,2635.2,2635.1,1.75010484]
[1727755411287,3.79477,2635.2,2635.1,0.09300484]
[1727755411586,3.79477,2635.2,2635.1,0.05]
[1727755412000,3.79443,2635.5,2635.1,0.09268475]
[1727755412490,3.79467,2635.3,2635.1,0.09268475]
[1727755413700,6.79477,2635.2,2635.1,0.04268475]
[1727755413848,9.00927,2635.2,2635.1,0.04268475]
[1727755414054,5.45986,2634.8,2634.5,0.05]
[1727755414257,3.79564,2634.6,2634.5,0.05]
[1727755415286,3.79549,2634.7,2634.5,0.05]
[1727755415694,3.79559,2634.7,2634.5,0.05]
[1727755417353,5.45986,2634.8,2634.5,0.05]
[1727755419662,5.45986,2634.8,2634.3,0.05]
[1727755419969,3.79551,2634.7,2634.5,0.05]
[1727755420841,2.210486,2634.8,2634.5,0.05]
[1727755421136,0.99894378,2635.4,2634.3,0.05]
[1727755421137,3.79587,2634.5,2634.3,0.05]
[1727755422137,5.41064,2634.6,2634.3,0.05]
[1727755422345,3.79541,2634.8,2634.6,0.05]
[1727755422635,3.79549,2634.7,2634.6,0.05]
[1727755422797,5.016597,2634.8,2634.6,0.05]
[1727755423131,3.0,2634.9,2634.6,0.05]
[1727755423435,3.79513,2635.0,2634.8,0.05]
[1727755424105,3.79513,2635.0,2634.9,0.03882543]
[1727755424325,7.59031,2635.0,2634.9,0.03882543]
[1727755424638,7.59031,2635.0,2634.8,0.05]
[1727755424953,3.79521,2634.9,2634.8,0.05]
[1727755425299,3.79521,2634.9,2634.8,0.08866394]
[1727755425722,3.79521,2634.9,2634.8,0.03866394]
[1727755425937,4.554244,2634.9,2634.6,0.05]
[1727755426345,4.554244,2634.9,2634.7,0.03869205]
[1727755427620,4.554244,2634.9,2634.8,0.05]
[1727755428139,4.554244,2634.9,2634.8,0.08862158]
[1727755431974,3.79513,2635.0,2634.8,0.08862158]
[1727755432177,7.58979,2635.2,2634.9,1.6337]
[1727755432326,3.79487,2635.2,2635.0,0.05]
[1727755432657,3.79486,2635.2,2635.0,0.08837965]
[1727755433182,3.79492,2635.1,2635.0,0.08837965]
[1727755435914,6.79477,2635.3,2635.0,0.08837965]
[1727755436067,3.79486,2635.2,2635.0,0.08837965]
[1727755437278,3.79492,2635.1,2635.0,0.08837965]
[1727755437468,3.79492,2635.1,2635.0,0.03837965]
[1727755437810,3.79478,2635.2,2634.8,0.05]
[1727755438101,3.79509,2635.0,2634.8,0.05]
[1727755439708,7.98656374,2635.2,2634.8,0.05]
[1727755439922,4.19166374,2635.2,2634.9,1.5449]
[1727755440070,0.39688374,2635.2,2635.1,0.05]
[1727755440427,0.39688374,2635.2,2635.1,1.5949]
[1727755440963,3.79437,2635.5,2635.1,1.5949]
[1727755441215,4.553235,2635.5,2635.1,1.5949]
[1727755441400,3.79428,2635.6,2635.4,0.05]
[1727755441710,3.79434,2635.5,2635.4,0.05]
[1727755443521,3.79428,2635.6,2635.4,0.05]
[1727755444089,7.58862,2635.6,2635.4,0.05]
[1727755444290,3.79428,2635.6,2635.5,0.03813904]
[1727755445227,4.37723564,2635.6,2635.5,0.03813904]
[1727755447688,4.37723564,2635.6,2635.4,0.05]
[1727755447689,3.79434,2635.5,2635.4,0.05]
[1727755451203,4.37717564,2635.6,2635.4,1.5984]
[1727755451504,4.19093639,2635.7,2635.6,0.05]
[1727755451505,0.39687639,2635.7,2635.6,0.05]
[1727755451837,0.39687639,2635.7,2635.6,1.5984]
[1727755451994,3.79358,2636.1,2635.6,1.5984]
[1727755452197,3.79377,2635.9,2635.6,1.5984]
[1727755452635,7.58717,2636.1,2635.6,1.5984]
[1727755452935,7.58717,2636.1,2635.6,2.517113]
[1727755453293,3.79364,2636.0,2635.6,2.517113]
[1727755454042,3.79381,2635.9,2635.6,2.517113]
[1727755454403,3.79381,2635.9,2635.8,0.05]
[1727755454618,3.79381,2635.9,2635.6,1.5484]
[1727755454619,3.79405,2635.7,2635.6,0.05]
[1727755456987,3.79434,2635.5,2635.4,0.05]
[1727755457225,3.79434,2635.5,2635.4,0.08743479]
[1727755462732,3.79434,2635.5,2635.4,0.03743479]
[1727755463120,3.79461,2635.4,2635.2,0.05]
[1727755463815,3.79463,2635.3,2635.2,0.05]
[1727755464805,4.708144,2635.3,2635.2,0.05]
[1727755465012,3.79463,2635.3,2635.2,0.05]
[1727755466725,3.79463,2635.3,2635.0,0.05]
[1727755466937,3.79492,2635.1,2635.0,0.05]
[1727755467500,4.19182675,2635.1,2635.0,0.05]
[1727755471498,6.7939,2635.9,2635.0,5.48276]
[1727755471700,5.40975,2636.2,2635.6,0.05]
[1727755471936,3.79349,2636.1,2635.8,0.05]
[1727755472125,0.39612729,2636.1,2636.0,0.05]
[1727755472497,3.79348,2636.1,2636.0,0.05]
[1727755472702,3.79336,2636.2,2636.0,0.05]
[1727755473660,3.79348,2636.1,2636.0,0.05]
[1727755474168,5.17915164,2636.1,2636.0,0.05]
[1727755475067,5.17915164,2636.1,2635.5,1.6377]
[1727755475068,5.38955,2636.0,2635.8,0.05]
[1727755480159,3.79377,2635.9,2635.8,0.05]
[1727755480566,3.79377,2635.9,2635.6,0.05]
[1727755480895,3.79405,2635.7,2635.6,0.05]
[1727755483360,7.58824,2635.7,2635.6,0.05]
[1727755483750,7.58824,2635.7,2635.4,0.05]
[1727755484595,7.58824,2635.7,2635.6,0.05]
[1727755484891,3.79405,2635.7,2635.6,0.05]
[1727755489091,3.79405,2635.7,2635.6,0.08615437]
[1727755489977,3.79405,2635.7,2635.6,0.08478031]
[1727755490313,4.552846,2635.7,2635.6,0.08478031]
[1727755497880,4.552846,2635.7,2635.6,0.03615437]
[1727755498080,3.79425,2635.6,2635.4,0.04862594]
[1727755501618,3.79405,2635.7,2635.4,0.04862594]
[1727755502021,3.79434,2635.5,2635.4,0.04862594]
[1727755502433,3.7942,2635.6,2635.4,0.04862594]
[1727755502797,3.79434,2635.5,2635.4,0.04862594]
[1727755502993,3.79423,2635.6,2635.4,0.04862594]
[1727755504113,3.79423,2635.6,2635.5,0.03621713]
[1727755506707,4.6467,2636.2,2635.9,0.04862594]
[1727755507052,3.79362,2636.0,2635.9,0.04862594]
[1727755507259,3.79362,2636.0,2635.9,0.08462293]
[1727755510154,7.58709,2636.1,2635.9,0.08462293]
[1727755510360,3.79362,2636.0,2635.9,0.08462293]
[1727755511057,3.79349,2636.1,2635.9,1.70542293]
[1727755511757,3.79362,2636.0,2635.9,1.70542293]
[1727755511913,4.25024152,2636.0,2635.9,0.08462293]
[1727755512131,3.79391,2635.8,2635.7,0.04862594]
[1727755514830,3.79391,2635.8,2635.7,1.56512594]
[1727755516613,3.79391,2635.8,2635.7,0.04862594]
[1727755519159,3.79391,2635.8,2635.7,0.08452518]
[1727755520270,4.90398586,2635.8,2635.7,0.08452518]
[1727755520423,7.90398586,2635.8,2635.7,0.03589924]
[1727755520821,3.7942,2635.6,2635.5,0.04862594]
[1727755521417,3.5130786,2635.7,2635.5,0.04862594]
[1727755521743,3.79371,2636.0,2635.9,0.04862594]
[1727755526662,11.1001586,2636.1,2635.9,0.04862594]
[1727755526870,7.3065686,2636.1,2635.9,0.04862594]
[1727755527235,11.1001286,2636.1,2635.9,0.04862594]
[1727755527434,7.3065686,2636.1,2636.0,1.5013]
[1727755530700,3.79362,2636.0,2635.9,0.04862594]
[1727755531603,5.4147968,2636.0,2635.9,0.04862594]
[1727755532193,1.6211768,2636.0,2635.9,0.04862594]
[1727755534178,5.4147968,2636.0,2635.9,0.15614925]
[1727755542332,3.79349,2636.1,2635.9,0.15614925]
[1727755543834,7.58705,2636.1,2635.9,0.15614925]
[1727755545132,3.79349,2636.1,2635.9,0.15614925]
[1727755545812,3.79327,2636.3,2636.0,1.6361]
[1727755545813,3.79338,2636.2,2636.0,1.6361]
[1727755546194,3.79338,2636.2,2636.1,0.10750017]
[1727755547205,5.4145568,2636.2,2636.1,0.10750017]
[1727755552697,3.793,2636.5,2636.4,1.64972594]
[1727755552899,3.793,2636.5,2636.4,1.75684035]
[1727755553498,3.793,2636.5,2636.4,1.64972594]
[1727755553698,3.793,2636.5,2636.4,1.75684035]
[1727755555338,5.4141768,2636.5,2636.4,1.75684035]
[1727755560353,4.5058,2637.0,2636.4,1.70821441]
[1727755560354,3.79267,2636.7,2636.4,1.70821441]
[1727755560642,3.79267,2636.7,2636.6,0.04862594]
[1727755560939,3.79267,2636.7,2636.6,0.15558259]
[1727755561106,3.79267,2636.7,2636.6,0.04862594]
[1727755561455,3.79267,2636.7,2636.6,0.15558259]
[1727755561630,3.79267,2636.7,2636.6,0.04862594]
[1727755561836,3.79267,2636.7,2636.6,0.15558259]
[1727755562033,3.79267,2636.7,2636.6,0.04862594]
[1727755562221,3.79267,2636.7,2636.6,0.15558259]
[1727755571364,5.4136668,2636.8,2636.6,0.15558259]
[1727755571365,1.6211768,2636.8,2636.6,0.15558259]
[1727755571519,5.44369,2637.5,2637.4,0.04862594]
[1727755571945,5.44369,2637.5,2637.4,0.15505171]
[1727755572160,3.79146,2637.5,2637.4,0.04862594]
[1727755572334,3.7908,2638.0,2637.9,0.04862594]
[1727755572335,3.79075,2638.0,2637.9,0.04862594]
[1727755572536,4.548886,2638.0,2637.9,0.04862594]
[1727755572722,7.548886,2638.0,2637.9,0.04862594]
[1727755574665,6.79075,2638.0,2637.9,0.04862594]
[1727755574876,8.4119268,2638.0,2637.9,0.04862594]
[1727755575082,8.4119268,2638.0,2637.9,0.15471333]
[1727755575230,4.6211768,2638.0,2637.9,0.04862594]
[1727755575429,4.6211768,2638.0,2637.9,0.15471333]
[1727755578339,1.6211768,2638.0,2637.9,0.15471333]
[1727755578534,3.79061,2638.1,2637.9,0.15471333]
[1727755579430,3.79075,2638.0,2637.9,0.15471333]
[1727755580072,8.29257,2638.4,2638.3,0.04862594]
[1727755580379,8.4114468,2638.4,2638.3,0.15396377]
[1727755580881,3.79004,2638.5,2638.3,0.15396377]
[1727755581237,1.5211,2638.6,2638.3,0.15396377]
[1727755581735,3.79003,2638.5,2638.3,0.15396377]
[1727755582071,7.58017,2638.5,2638.3,0.15396377]
[1727755582284,5.4112068,2638.5,2638.3,0.15396377]
[1727755587447,3.78928,2639.1,2639.0,0.04862594]
[1727755587647,7.87245868,2639.1,2639.0,0.04862594]
[1727755587952,5.42133,2639.2,2639.0,0.04862594]
[1727755588275,5.4094168,2639.8,2639.7,0.04862594]
[1727755588593,5.4091968,2639.9,2639.7,0.04862594]
[1727755588742,1.6211768,2639.9,2639.7,0.04862594]
[1727755588943,3.78691,2640.7,2639.4,3.8644854]
[1727755588944,1.6234,2640.2,2640.0,0.04862594]
[1727755589143,5.41063,2640.5,2640.3,0.04862594]
[1727755589399,3.78649,2641.0,2640.9,0.04862594]
[1727755590748,11.55791804,2641.0,2640.9,0.04862594]
[1727755593173,13.11911804,2641.0,2640.9,0.04862594]
[1727755594293,5.4123,2640.4,2640.3,0.04862594]
[1727755594494,5.4123,2640.4,2639.7,8.8946]
[1727755594495,3.78759,2640.2,2640.1,0.04862594]
[1727755595719,7.2864264,2640.2,2640.1,0.04862594]
[1727755596768,3.78816,2639.8,2639.7,0.04862594]
[1727755596971,7.2869964,2639.8,2639.7,0.04862594]
[1727755601849,3.4988364,2639.8,2639.7,0.04862594]
[1727755602212,7.2868164,2640.0,2639.7,0.04862594]
[1727755602455,7.2868164,2640.0,2639.9,0.04862594]
[1727755603651,7.2868164,2640.0,2639.9,0.15183647]
[1727755603809,7.2868164,2640.0,2639.9,0.04862594]
[1727755604008,7.2868164,2640.0,2639.9,0.15183647]
[1727755604264,7.2868164,2640.0,2639.9,0.04862594]
[1727755604412,7.2868164,2640.0,2639.9,0.15183647]
[1727755604614,7.2868164,2640.0,2639.9,0.04862594]
[1727755604847,7.2868164,2640.0,2639.9,0.15183647]
[1727755605059,7.2868164,2640.0,2639.9,0.04862594]
[1727755607059,8.39427104,2640.0,2639.9,0.04862594]
[1727755608235,7.2868164,2640.0,2639.9,0.04862594]
[1727755608972,7.2868164,2640.0,2639.9,0.1518288]
[1727755609880,3.4988364,2640.0,2639.9,0.1518288]
[1727755610043,7.2867064,2640.0,2639.9,0.1518288]
[1727755610240,3.4988364,2640.0,2639.9,0.1518288]
[1727755610444,3.78773,2640.1,2639.9,1.6950288]
[1727755610646,7.2865664,2640.1,2639.9,1.6950288]
[1727755610836,11.0743864,2640.1,2639.9,1.6950288]
[1727755611173,7.2865664,2640.1,2639.9,1.6950288]
[1727755611385,3.78751,2640.3,2639.9,1.6950288]
[1727755611386,7.2860364,2640.5,2640.4,0.04862594]
[1727755611863,10.2860364,2640.5,2640.4,0.15168675]
[1727755612055,10.2860364,2640.5,2640.4,0.04862594]
[1727755612684,7.2860364,2640.5,2640.4,0.15150644]
[1727755612881,3.78702,2640.6,2640.4,1.67132594]
[1727755613083,3.78702,2640.6,2640.4,1.77420644]
[1727755613258,3.78716,2640.5,2640.4,1.67132594]
[1727755613779,3.78702,2640.6,2640.4,1.67132594]
[1727755614078,7.2859964,2640.5,2640.4,0.04862594]
[1727755620685,3.78702,2640.6,2640.4,0.04862594]
[1727755621056,3.78716,2640.5,2640.4,0.04862594]
[1727755624013,5.32366,2640.5,2640.4,0.04862594]
[1727755625932,3.78716,2640.5,2640.4,0.04862594]
[1727755626924,3.78716,2640.5,2640.4,0.1512687]
[1727755627119,7.57415,2640.6,2640.4,0.1512687]
[1727755627525,3.78702,2640.6,2640.4,0.1512687]
[1727755627911,3.78716,2640.5,2640.4,0.1512687]
[1727755629037,3.78702,2640.6,2640.4,0.1512687]
[1727755629339,7.57415,2640.6,2640.4,0.1512687]
[1727755629995,3.78678,2640.8,2640.6,0.04862594]
[1727755630241,3.78678,2640.8,2640.7,1.5021]
[1727755630435,7.2856164,2640.8,2640.7,1.5021]
[1727755630600,7.2856164,2640.8,2640.7,1.60120751]
[1727755632526,10.00903704,2640.8,2640.7,0.09910751]
[1727755632749,10.00903704,2640.8,2640.6,0.04862594]
[1727755632959,3.78687,2640.7,2640.6,0.04862594]
[1727755634470,3.78687,2640.7,2640.6,0.1476683]
[1727755636437,5.44147,2640.7,2640.6,0.1476683]
[1727755636766,5.44147,2640.7,2640.6,0.04862594]
[1727755637677,6.71417864,2640.7,2640.6,0.04862594]
[1727755638537,5.05957864,2640.7,2640.6,0.04862594]
[1727755639030,5.05957864,2640.7,2640.6,0.14770662]
[1727755639236,5.05957864,2640.7,2640.6,0.04862594]
[1727755642840,3.78716,2640.5,2640.4,0.04862594]
[1727755643039,8.40016,2640.5,2640.4,0.04862594]
[1727755643265,11.8989964,2640.5,2640.4,0.04862594]
[1727755644379,11.8989964,2640.5,2640.2,0.04862594]
[1727755644577,1.5758,2640.2,2640.0,0.04862594]
[1727755644739,7.2865664,2640.1,2640.0,0.04862594]
[1727755645076,3.78802,2639.9,2639.8,0.04862594]
[1727755645279,3.78802,2639.9,2638.9,12.31]
[1727755645280,3.7883,2639.7,2639.6,0.04862594]
[1727755645486,4.545932,2639.7,2639.6,0.04862594]
[1727755645785,4.545932,2639.7,2639.2,1.5514]
[1727755645786,3.78888,2639.3,2639.2,0.04862594]
[1727755646143,7.2877164,2639.3,2639.2,0.04862594]
[1727755649251,3.78917,2639.1,2639.0,0.04862594]
[1727755649527,10.7868428,2639.1,2639.0,0.04862594]
[1727755650640,3.78988,2638.6,2638.1,7.34]
[1727755650841,3.4988364,2638.3,2638.2,1.6574]
[1727755654087,3.4988364,2638.3,2638.2,1.74734793]
[1727755656476,3.4988364,2638.3,2638.2,0.08994793]
[1727755656679,3.79052,2638.2,2638.0,1.5958]
[1727755656902,3.79103,2637.8,2637.7,1.6263]
[1727755657189,3.79133,2637.6,2637.1,1.6263]
[1727755657342,3.4988364,2637.2,2637.1,1.6263]
[1727755657538,3.4988364,2637.2,2636.8,1.6263]
[1727755657776,3.4988364,2636.9,2636.8,1.6263]
[1727755658339,3.79175,2637.3,2636.8,1.6263]
[1727755658542,3.4988364,2637.0,2636.8,1.6263]
[1727755662177,3.79233,2636.9,2636.8,1.6263]
[1727755662382,3.79233,2636.9,2636.4,1.5271]
[1727755662583,3.4988364,2636.8,2636.4,1.5271]
[1727755662785,3.4988364,2636.6,2636.4,1.5271]
[1727755663081,3.7932,2636.3,2636.0,1.5271]
[1727755663277,3.4988364,2636.2,2636.0,1.5271]
[1727755663688,3.4988364,2636.2,2635.5,1.5271]
[1727755663689,3.79368,2636.0,2635.5,1.5271]
[1727755663891,3.4988364,2636.2,2635.6,3.79411]
[1727755664628,3.4988364,2636.2,2635.7,3.79404]
[1727755664775,3.4988364,2636.2,2635.8,1.60296453]
[1727755664974,3.79294,2636.5,2635.9,3.79366]
[1727755665191,3.79294,2636.5,2636.0,3.79361]
[1727755665397,3.79269,2636.7,2636.2,3.79331]
[1727755665596,3.79269,2636.7,2636.1,5.46822089]
[1727755667898,7.58543,2636.7,2636.1,5.46822089]
[1727755668099,3.79269,2636.7,2636.1,5.46822089]
[1727755668599,3.79238,2636.9,2636.1,5.46822089]
[1727755668800,3.79204,2637.1,2636.5,3.79281]
[1727755669044,3.79203,2637.2,2636.7,1.624]
[1727755669347,3.79183,2637.3,2636.7,2.17338347]
[1727755669527,3.79183,2637.3,2636.8,0.07689778]
[1727755669701,3.79213,2637.1,2636.8,0.07689778]
[1727755670149,5.0362364,2637.5,2636.8,0.07689778]
[1727755670442,3.79203,2637.2,2636.8,0.07689778]
[1727755670798,3.7922,2637.0,2636.8,0.07689778]
[1727755670995,3.79152,2637.5,2636.8,0.07689778]
[1727755671200,3.7917,2637.4,2636.8,4.50205246]
[1727755671454,3.79198,2637.2,2636.8,0.70967246]
[1727755671801,7.5834,2637.4,2636.8,0.70967246]
[1727755672138,3.79179,2637.3,2636.8,0.70967246]
[1727755672338,3.79179,2637.3,2636.8,4.50210246]
[1727755672544,3.79179,2637.3,2636.9,0.61261025]
[1727755672951,7.58312,2637.5,2637.0,0.07672474]
[1727755673144,3.7917,2637.4,2637.0,0.07672474]
[1727755673345,3.7917,2637.4,2636.8,4.42514468]
[1727755673549,3.7917,2637.4,2637.1,0.07669395]
[1727755673762,3.7917,2637.4,2636.8,4.42514468]
[1727755673984,3.7917,2637.4,2637.2,0.07666317]
[1727755674261,3.7917,2637.4,2637.3,0.07663239]
[1727755674814,3.7917,2637.4,2636.9,0.60491447]
[1727755675018,3.79185,2637.3,2637.0,0.07672474]
[1727755675420,3.79185,2637.3,2636.8,0.55693805]
[1727755675421,3.79195,2637.2,2636.8,0.55693805]
[1727755676056,3.79195,2637.2,2636.9,0.07673245]
[1727755677279,7.58343,2637.4,2636.9,0.07673245]
[1727755677461,7.58343,2637.4,2636.9,0.68933516]
[1727755677675,3.79178,2637.3,2636.9,0.68933516]
[1727755678290,3.79194,2637.2,2636.9,0.68933516]
[1727755678648,3.79178,2637.3,2636.9,0.68933516]
[1727755679292,3.79204,2637.2,2636.9,0.07673245]
[1727755679598,3.79178,2637.3,2636.9,0.07673245]
[1727755679968,7.58366,2637.3,2636.9,0.07673245]
[1727755680400,3.79194,2637.2,2636.9,0.07673245]
[1727755680865,3.79206,2637.1,2636.9,0.07673245]
[1727755681066,3.7929,2636.5,2636.4,1.5292]
[1727755681585,3.79277,2636.6,2636.4,1.5292]
[1727755681796,3.4988364,2636.7,2635.9,1.5821]
[1727755682001,3.79362,2636.0,2635.9,1.5821]
[1727755682504,3.79341,2636.2,2635.6,5.3763]
[1727755682799,7.58631,2636.4,2635.7,3.86984163]
[1727755683093,3.79312,2636.4,2635.7,7.66380163]
[1727755683295,3.79312,2636.4,2635.8,1.00045587]
[1727755683794,3.79322,2636.3,2635.8,1.00045587]
[1727755684168,3.79322,2636.3,2635.9,0.07705197]
[1727755685163,3.79334,2636.2,2635.9,0.07705197]
[1727755685802,3.79352,2636.1,2635.9,0.07705197]
[1727755686002,3.79334,2636.2,2635.6,5.45207889]
[1727755686155,3.79334,2636.2,2636.0,0.07702116]
[1727755686355,3.79334,2636.2,2635.8,0.07586793]
[1727755686555,3.79334,2636.2,2635.7,0.92463289]
[1727755686556,7.58627,2636.4,2635.7,4.79445078]
[1727755686800,7.58627,2636.4,2635.9,0.07736337]
[1727755686980,3.79311,2636.4,2635.8,0.07739419]
[1727755687184,3.79311,2636.4,2636.0,0.07733256]
[1727755687383,3.79321,2636.3,2635.9,0.07736337]
[1727755687709,3.79321,2636.3,2636.0,0.07733256]
[1727755687852,3.79311,2636.4,2635.8,0.6453945]
[1727755687853,3.79336,2636.2,2635.8,0.6453945]
[1727755688058,7.58679,2636.2,2635.9,0.07736337]
[1727755688305,3.79336,2636.2,2635.9,0.07736337]
[1727755688658,3.7932,2636.3,2635.9,0.07736337]
[1727755689903,3.7931,2636.4,2635.9,0.07736337]
[1727755690262,3.79321,2636.3,2636.0,1.6096]
[1727755690458,3.79302,2636.5,2636.0,1.6096]
[1727755690793,3.79313,2636.4,2636.1,0.07730176]
[1727755691271,3.79302,2636.5,2636.1,0.07730176]
[1727755691272,3.79319,2636.3,2636.1,0.07730176]
[1727755694317,3.79333,2636.2,2636.1,0.07730176]
[1727755694466,3.79333,2636.2,2635.7,1.5335]
[1727755694806,3.79366,2636.0,2635.7,1.5335]
[1727755695300,3.79366,2636.0,2635.6,0.79328665]
[1727755695500,3.79366,2636.0,2635.5,8.9496]
[1727755695501,3.79391,2635.8,2635.5,9.74288665]
[1727755695664,7.58737,2636.0,2635.5,8.9496]
[1727755696312,3.8781554,2636.3,2635.6,0.07587614]
[1727755696313,3.79343,2636.2,2635.6,0.07587614]
[1727755696607,7.58571,2636.6,2636.0,3.79354]
[1727755696805,3.79285,2636.6,2636.1,0.07586347]
[1727755697105,3.79257,2636.8,2636.4,1.5221]
[1727755697283,5.34046,2637.0,2636.4,1.5221]
[1727755697484,5.34046,2637.0,2636.4,2.13705747]
[1727755697787,7.58454,2637.0,2636.4,2.13705747]
[1727755698104,3.79226,2637.0,2636.4,2.06120522]
[1727755698275,3.79247,2636.8,2636.4,2.06120522]
[1727755698889,7.58508,2636.8,2636.4,1.5221]
[1727755699072,3.79234,2636.9,2636.5,0.07737461]
[1727755699279,3.79254,2636.8,2636.5,0.07737461]
[1727755702385,3.79234,2636.9,2636.5,0.07737461]
[1727755702576,3.792,2637.2,2636.7,1.5238]
[1727755702779,3.79184,2637.3,2636.7,5.39223159]
[1727755703006,3.79184,2637.3,2636.8,0.07728223]
[1727755703782,7.58311,2637.5,2636.9,3.79232]
[1727755704112,3.7915,2637.5,2636.9,3.86945227]
[1727755704316,3.79179,2637.3,2636.9,0.07713227]
[1727755704490,3.79179,2637.3,2636.7,5.93911514]
[1727755704694,3.79179,2637.3,2637.0,0.07710148]
[1727755704888,3.7915,2637.5,2636.8,0.66974913]
[1727755705199,5.44421,2637.7,2637.1,0.0770707]
[1727755705395,5.44421,2637.7,2637.0,5.30196]
[1727755705718,5.44421,2637.7,2637.2,0.07703992]
[1727755705905,5.44421,2637.7,2637.1,0.0770707]
[1727755706076,5.44421,2637.7,2637.3,0.07693611]
[1727755706279,3.79148,2637.5,2637.0,6.27076815]
[1727755706522,3.79148,2637.5,2637.1,0.07699767]
[1727755707101,3.79163,2637.4,2637.1,0.07699767]
[1727755708343,3.79177,2637.3,2637.1,0.07699767]
[1727755708553,3.7919,2637.2,2637.1,0.07699767]
[1727755708718,5.3342,2637.2,2636.7,1.61]
[1727755708922,3.79216,2637.1,2636.7,1.61]
[1727755709252,9.12632,2637.2,2636.5,5.40038]
[1727755709550,3.79212,2637.1,2636.5,5.40038]
[1727755709743,3.79212,2637.1,2636.6,4.712099]
[1727755709918,5.33429,2637.2,2636.6,4.712099]
[1727755710108,5.33429,2637.2,2636.6,8.504859]
[1727755710310,5.33429,2637.2,2636.6,4.712099]
[1727755710545,3.79205,2637.1,2636.6,4.712099]
[1727755710852,5.33429,2637.2,2636.6,0.919339]
[1727755711051,3.7922,2637.0,2636.5,5.40049]
[1727755711345,3.79235,2636.9,2636.5,1.6076]
[1727755711529,3.7922,2637.0,2636.5,5.40049]
[1727755711716,3.7922,2637.0,2636.5,1.6076]
[1727755712246,3.7922,2637.0,2636.5,5.4005]
[1727755712546,3.7922,2637.0,2636.5,1.6076]
[1727755712913,3.7922,2637.0,2636.5,5.40044]
[1727755713113,3.79233,2636.9,2636.5,1.6076]
[1727755713309,3.7922,2637.0,2636.5,1.6076]
[1727755713310,8.497148,2637.0,2636.5,1.6076]
[1727755713508,3.7922,2637.0,2636.5,1.6076]
[1727755713927,3.79233,2636.9,2636.5,1.6076]
[1727755714127,3.79233,2636.9,2636.6,0.07677486]
[1727755714330,3.7922,2637.0,2636.6,0.07677486]
[1727755715007,3.7924,2636.9,2636.6,0.07677486]
[1727755715421,3.7922,2637.0,2636.6,0.07677486]
[1727755715624,1.5664,2636.9,2636.6,0.07677486]
[1727755715822,5.35882,2636.9,2636.6,0.07677486]
[1727755716043,3.7925,2636.8,2636.2,3.79324]
[1727755716229,3.7925,2636.8,2636.7,0.07685938]
[1727755716425,5.11086064,2636.8,2636.2,3.79324]
[1727755716628,3.7925,2636.8,2636.7,0.07685938]
[1727755716824,3.7925,2636.8,2636.3,1.6332]
[1727755717031,3.7925,2636.8,2636.7,0.07685938]
[1727755717432,5.35882,2636.9,2636.7,0.07685938]
[1727755717633,5.34363,2637.1,2636.3,1.70905595]
[1727755717856,3.79227,2637.0,2636.8,0.07687856]
[1727755718164,3.79227,2637.0,2636.9,0.07703614]
[1727755718456,3.79227,2637.0,2636.4,7.58588]
[1727755718662,3.79227,2637.0,2636.9,0.07703614]
[1727755719161,3.79227,2637.0,2636.4,7.58588]
[1727755719456,3.79227,2637.0,2636.9,0.07703614]
[1727755719616,3.79227,2637.0,2636.4,3.79293]
[1727755719818,3.79218,2637.0,2636.9,0.07703614]
[1727755720060,5.05565364,2637.0,2636.4,3.79293]
[1727755720249,5.05565364,2637.0,2636.9,0.07703614]
[1727755720857,3.79249,2636.8,2636.3,1.6332]
[1727755721022,3.79262,2636.7,2636.3,1.6332]
[1727755721222,3.79279,2636.6,2636.3,1.6332]
[1727755721576,3.79335,2636.2,2636.0,7.34]
[1727755721733,3.79335,2636.2,2635.8,1.5944]
[1727755722348,3.79335,2636.2,2635.5,1.5944]
[1727755722349,8.9320864,2636.2,2635.5,1.5944]
[1727755722552,3.79371,2636.0,2635.5,1.5944]
[1727755722726,8.9321364,2636.2,2635.5,1.5944]
[1727755722727,3.7935,2636.1,2635.5,1.5944]
[1727755722927,3.79364,2636.0,2635.5,1.5944]
[1727755724225,7.2924764,2636.0,2635.5,1.5944]
[1727755724427,4.77141504,2636.0,2635.3,1.5758]
[1727755724751,3.79437,2635.5,2635.1,19.95]
[1727755725735,9.17402,2635.7,2635.1,19.95]
[1727755726040,3.79422,2635.6,2635.1,19.95]
[1727755726660,5.37982,2635.7,2635.1,19.95]
[1727755726860,5.37982,2635.7,2635.1,22.482074]
[1727755727250,5.37982,2635.7,2635.1,26.276984]
[1727755727574,5.37982,2635.7,2635.1,22.482074]
[1727755727870,5.37982,2635.7,2635.1,26.276974]
[1727755728572,5.37982,2635.7,2635.1,22.482074]
[1727755728763,5.37982,2635.7,2635.1,26.276954]
[1727755729173,5.37982,2635.7,2635.2,0.07051026]
[1727755729728,5.37982,2635.7,2635.2,20.02051026]
[1727755729924,3.79421,2635.6,2635.2,20.02051026]
[1727755730164,5.37982,2635.7,2635.2,20.02051026]
[1727755730487,3.79421,2635.6,2635.2,20.02051026]
[1727755731641,3.7942,2635.6,2635.2,20.02051026]
[1727755732024,1.5857,2635.7,2635.2,20.02051026]
[1727755732252,3.79461,2635.4,2635.2,20.02051026]
[1727755732575,3.79461,2635.4,2635.2,0.07051026]
[1727755732871,3.79447,2635.5,2635.2,0.07051026]
[1727755733088,3.79449,2635.4,2635.2,0.07051026]
[1727755733230,3.79451,2635.4,2635.2,0.07051026]
[1727755733654,3.79445,2635.5,2635.2,0.07051026]
[1727755734737,7.5889,2635.5,2635.2,20.02051026]
[1727755735075,3.79445,2635.5,2635.2,20.02051026]
[1727755735971,7.5889,2635.5,2635.2,20.02051026]
[1727755736267,3.79445,2635.5,2635.2,20.02051026]
[1727755737173,7.5889,2635.5,2635.2,20.02051026]
[1727755737332,3.79445,2635.5,2635.2,20.02051026]
[1727755737944,7.58888,2635.5,2635.2,20.02051026]